Cogmind - Beta 13 *** ADVENTURER MODE // 2024.04.08 @ 15:11:51 Player: XorOwl Result: Destroyed by G-50 Soldier with Heavy Laser Performance ------------- Evolutions (3) 1500 Regions Visited (5) 1000 Robots Destroyed (73) 365 Value Destroyed (2510) 2510 Prototype IDs (4) 80 Alien Tech Used (0) 0 Bonus (-533) -533 TOTAL SCORE: 4922 Bonus ------- Friendly Fire -533 Cogmind --------- Core Integrity 0/700 Matter 190/300 Energy 100/100 System Corruption 5% Temperature Warm (117) Movement Core (350) Ox6 Location -7/Factory Parts ------- > --- POWER (2) -------- (None) > --- PROPULSION (4) --- (None) > --- UTILITY (4) ------ Advanced Weight Redist. System Signal Interpreter Advanced ECM Suite Core Shielding > --- WEAPON (3) ------- Assault Cannon Assault Cannon Assault Cannon > --- INVENTORY (5) ---- Improved Heat Sink Authchip [R/Combat] Tractor Beam Peak State ------------ > --- POWER ------------ Improved Deuterium Engine Micro Nuclear Core > --- PROPULSION ------- Aluminum Leg Carbon-fiber Leg Myomer Leg Myomer Leg > --- UTILITY ---------- Large Storage Unit Medium Matter Pod ECM Suite Hacking Suite > --- WEAPON ----------- Heavy Particle Gun Cooled Pulse Rifle Gauss Cannon > --- INVENTORY -------- Flight Unit Flight Unit Flight Unit Flight Unit Advanced Weight Redist. System Signal Interpreter Advanced ECM Suite Core Shielding Authchip [R/Combat] Authchip [Power] Authchip [Propulsion] Remote Datajack Axe [Rating: 48] Favorites ----------- Power Light Ion Engine Engine Light Ion Engine Power Core Micro Nuclear Core Propulsion Aluminum Leg Leg Aluminum Leg Flight Unit Flight Unit Utility Large Storage Unit Device High-powered Tractor Beam Storage Large Storage Unit Processor Signal Interpreter Hackware Hacking Suite Protection Core Shielding Weapon Medium Laser Energy Gun Medium Laser Ballistic Gun Shotgun Ballistic Cannon Gauss Cannon Launcher Rocket Launcher Special Weapon Mining Laser Impact Weapon Hammer Slashing Weapon Katana Build | -11 -10 -10 -10 -9 -7 ------- Run | Yrd Mat Min Sub Rec Fac Slots Evolved 6 | . . . . . 6 Power 1 | . . . . . 1 Propulsion 2 | . . . . . 2 Utility 2 | . . . . . 2 Weapon 1 | . . . . . 1 Parts Attached 65 | 5 9 4 3 1 43 Power 7 | 1 2 . 1 . 3 Engine 5 | 1 1 . 1 . 2 Core 2 | . 1 . . . 1 Reactor . | . . . . . . Propulsion 16 | 2 1 1 2 . 10 Treads . | . . . . . . Leg 12 | 2 1 1 2 . 6 Wheel . | . . . . . . Hover . | . . . . . . Flight 4 | . . . . . 4 Utility 12 | . 3 1 . . 8 Device 7 | . 2 1 . . 4 Storage 2 | . 1 . . . 1 Processor 1 | . . . . . 1 Hackware 1 | . . . . . 1 Protection 1 | . . . . . 1 Artifact . | . . . . . . Weapon 30 | 2 3 2 . 1 22 Energy Gun 4 | 2 . . . . 2 Energy Cannon . | . . . . . . Ballistic Gun 5 | . 3 . . . 2 Ballistic Cannon 6 | . . . . . 6 Launcher 7 | . . 1 . . 6 Special Weapon 2 | . . 1 . . 1 Impact Weapon 1 | . . . . 1 . Slashing Weapon 5 | . . . . . 5 Piercing Weapon . | . . . . . . Special Melee Weapon . | . . . . . . Unidentified Prototypes 2 | . . . . . 2 Parts Lost 31 | . 1 3 . . 27 Power 5 | . . 1 . . 4 Propulsion 11 | . 1 . . . 10 Utility 5 | . . 1 . . 4 Weapon 10 | . . 1 . . 9 Highest Loss Streak 11 | . 1 2 . . 11 To Critical Strikes . | . . . . . . Average Slot Usage (%) 90 | . 97 99 94 100 72 Engine 8 | . 7 13 8 14 4 Core 3 | . 6 . . . 3 Leg 25 | . 28 28 28 28 18 Device 12 | . 14 14 14 14 8 Storage 12 | . 11 14 14 14 12 Hackware 1 | . . . . . 4 Energy Gun 2 | . 3 . . . 4 Ballistic Gun 13 | . 23 21 14 8 1 Launcher 4 | . . . 14 14 3 Slashing Weapon 1 | . . . . . 3 Naked Turns . | . . . . . . Heaviest Build 51 | 6 32 31 33 33 51 Greatest Support 75 | 20 20 20 50 50 75 Greatest Overweight (x) 4 | . 1 1 1 . 4 Average Overweight (x) . | . . 1 . . . Largest Inventory Capacity 15 | 5 15 15 15 15 15 Average Capacity 9 | 5 13 15 15 15 13 Most Carried 15 | 2 9 15 15 15 15 Average Carried 6 | 1 6 12 13 14 12 Final Capacity 15 | 5 15 15 15 15 5 Final Carried 15 | 2 9 11 13 15 3 Class Distribution -------------------- 85% | Mutant 6% | Hacker-Mutant 4% | Scavenger-Mutant 3% | Scavenger-Gunner Dominant Class ---------------- Mutant | -10/Materials Mutant | -10/Mines Mutant | -10/Subcaves Mutant | -9/Recycling Hacker-Mutant | -7/Factory Resources | -11 -10 -10 -10 -9 -7 ----------- Run | Yrd Mat Min Sub Rec Fac Matter Collected 2057 | 250 477 97 208 192 833 Remotely 524 | . 477 24 . . 23 Salvage Created 2635 | 42 569 117 355 195 1357 Parts 105 | 2 29 12 15 6 41 Haulers Intercepted . | . . . . . . Recyclers Shooed 4 | . 1 . . . 3 Parts Field Recycled . | . . . . . . Retrieved Matter . | . . . . . . Parts Self-Destructed 11 | . . . 11 . . Prevented . | . . . . . . Kills | -11 -10 -10 -10 -9 -7 ------- Run | Yrd Mat Min Sub Rec Fac Combat Hostiles Destroyed 56 | 1 12 5 13 3 22 Melee 4 | . . . . . 4 Guns 29 | 1 12 5 3 . 8 Cannons 3 | . . . . . 3 AOE 19 | . . . 10 3 6 Classes Destroyed 12 | 1 2 1 3 1 4 Builder 1 | . . . . . 1 Recycler 10 | . 2 . . 1 7 Turret 1 | . . . 1 . . Watcher 3 | . 2 . . . 1 Swarmer 6 | . . 3 2 . 1 Grunt 28 | 1 12 2 . . 13 Brawler 1 | . . . . . 1 Duelist 1 | . . . . . 1 Sentry 6 | . . . . 3 3 Programmer 3 | . . . . . 3 Subdweller 11 | . . . 11 . . Thug 1 | . . . 1 . . Guerrilla 1 | . . . 1 . . Best Kill Streak 9 | 1 3 3 8 2 9 Combat Bots Only 7 | 1 3 3 7 2 6 Max Kills in Single Turn 3 | 1 2 1 3 1 2 Gunslinging 1 | . 1 . . . . Exploded 3 | . . . 3 1 2 Melee 1 | . . . . . 1 Uniques/NPCs Destroyed . | . . . . . . Combat | -11 -10 -10 -10 -9 -7 -------- Run | Yrd Mat Min Sub Rec Fac Hostile Shots Fired 549 | 2 62 22 14 6 443 Missed 189 | . 16 4 5 2 162 Damage Taken 3722 | 16 419 167 219 47 2854 Core 834 | 8 44 23 47 12 700 Absorbed by Shields . | . . . . . . Redirected to Shielding 32 | . . . . . 32 Ignored by Resistances 1122 | 4 132 51 64 13 858 Regen/Repaired (Parts) 137 | . . . . . 137 Core Remaining (%) 71 | 96 . . . 46 . Volleys Fired 173 | 2 43 27 22 5 74 Largest 3 | 2 2 2 2 2 3 Hottest 132 | 90 90 123 56 56 132 Shots Fired 283 | 4 83 35 31 9 121 Gun 195 | 4 83 21 16 5 66 Cannon 38 | . . . . . 38 Launcher 41 | . . 5 15 4 17 Special 9 | . . 9 . . . Kinetic 177 | . 73 21 16 5 62 Thermal 65 | 4 10 9 . . 42 Explosive 41 | . . 5 15 4 17 Electromagnetic . | . . . . . . Robot Hit Streak 14 | 3 11 8 14 10 13 Robot Miss Streak 5 | 1 3 3 2 1 5 Penetration Max 1 | . . . . . 1 Secondary Targets 1 | . 1 . . . . Max Gunslinging Chain 1 | . 1 . . . . Shots Hit Robots 211 | 3 61 17 23 9 98 Core Hits 170 | 2 35 9 34 12 78 Critical Kills . | . . . . . . Critical Parts Destroyed . | . . . . . . Critical Strikes 3 | . . . . . 3 Burn 1 | . . . . . 1 Blast 2 | . . . . . 2 Melee Attacks 18 | . . . . 1 17 Impact 5 | . . . . 1 4 Slashing 13 | . . . . . 13 Piercing . | . . . . . . Sneak Attacks 3 | . . . . . 3 Combat Hostiles . | . . . . . . Follow-up Attacks . | . . . . . . Damage Inflicted 6982 | 33 948 261 2107 221 3412 Guns 2603 | 33 948 261 200 88 1073 Cannons 792 | . . . . . 792 Explosions 3136 | . . . 1907 133 1096 Melee 451 | . . . . . 451 Ramming . | . . . . . . Kinetic 2689 | . 865 261 200 88 1275 Thermal 778 | 33 83 . . . 662 Explosive 3064 | . . . 1907 133 1024 Electromagnetic . | . . . . . . Impact 130 | . . . . . 130 Slashing 321 | . . . . . 321 Piercing . | . . . . . . Highest Corruption 5 | . . . . . 5 Average Corruption 3 | . . . . . 3 Corruption Purged . | . . . . . . Corruption Blocked . | . . . . . . Effects 18 | . . . . . 18 Message Errors 4 | . . . . . 4 Matter Fused 4 | . . . . . 4 Heat Flow Errors 2 | . . . . . 2 Energy Discharges 1 | . . . . . 1 Data Loss (minor) 3 | . . . . . 3 Data Loss (major) 1 | . . . . . 1 Misfires 1 | . . . . . 1 Alerts 1 | . . . . . 1 Weapon Failures 1 | . . . . . 1 Overload Shots 2 | . . . . . 2 Overflow Damage 98 | . . 1 56 . 41 Projectiles 2 | . . . . . 2 Explosions 63 | . . 1 56 . 6 Melee 33 | . . . . . 33 Knockbacks 4 | . . . . . 4 Impact . | . . . . . . Kinetic 4 | . . . . . 4 Secondary . | . . . . . . Self-Inflicted Damage 171 | . . 10 44 . 117 Shots 7 | . . 1 4 . 2 Rammed . | . . . . . . Targets Rammed . | . . . . . . Kicked . | . . . . . . Crushed . | . . . . . . Highest Temperature 547 | 72 22 82 . 10 547 Average Temperature 100 | 42 7 30 . 5 160 Received Heat Transfer 1671 | 12 324 96 30 18 1191 Effects 6 | . . . . . 6 Shutdowns 1 | . . . . . 1 Matter Decay 3 | . . . . . 3 Short Circuit 1 | . . . . . 1 Damage (minor) 1 | . . . . . 1 Siege Activations . | . . . . . . Robots Corrupted . | . . . . . . Combat Hostiles . | . . . . . . Parts Fried . | . . . . . . Impact Corruptions . | . . . . . . Robots Melted 1 | . . . . . 1 Combat Hostiles 1 | . . . . . 1 Parts Melted 4 | . . . 1 . 3 Heat Transferred 1544 | 87 223 . . . 1234 Parts Sabotaged . | . . . . . . Parts Stolen . | . . . . . . Parts Stripped . | . . . . . . Power Chain Reactions . | . . . . . . Alert | -11 -10 -10 -10 -9 -7 ------- Run | Yrd Mat Min Sub Rec Fac Peak Influence 352 | 20 177 76 . 277 352 Initial 173 | . . 6 . 173 133 Average 61 | 1 54 46 . 191 218 Maximum Alert Level 1 | . . . . 1 1 Low Security (%) 85 | 100 100 100 . 38 34 Level 1 14 | . . . . 61 65 Level 2 . | . . . . . . Level 3 . | . . . . . . Level 4 . | . . . . . . Level 5 . | . . . . . . High Security . | . . . . . . Max Security . | . . . . . . Squads Dispatched 9 | . 3 . . . 6 Investigation 6 | . 3 . . . 3 Extermination 2 | . . . . . 2 Reinforcement . | . . . . . . Assault . | . . . . . . Garrison 1 | . . . . . 1 Intercept . | . . . . . . Searches Triggered . | . . . . . . Construction Impeded . | . . . . . . Haulers Reinforced . | . . . . . . Active Scanning Responses . | . . . . . . Cargo Convoy Interrupts . | . . . . . . Stealth | -11 -10 -10 -10 -9 -7 --------- Run | Yrd Mat Min Sub Rec Fac Distress Signals 1 | . 1 . . . . Communications Jammed . | . . . . . . Distress Signals . | . . . . . . Times Spotted 114 | 1 21 5 40 2 45 Peak Tracking Total 8 | 1 3 3 8 2 7 Tactical Retreats 6 | . 1 . 2 . 3 Traps | -11 -10 -10 -10 -9 -7 ------- Run | Yrd Mat Min Sub Rec Fac Traps Triggered 4 | . 2 . . . 2 Indirectly . | . . . . . . Trap Hack Attempts . | . . . . . . Triggered . | . . . . . . Disarmed . | . . . . . . Reprogrammed . | . . . . . . Reused . | . . . . . . Traps Extracted . | . . . . . . Installed . | . . . . . . Triggered . | . . . . . . Machines | -11 -10 -10 -10 -9 -7 ---------- Run | Yrd Mat Min Sub Rec Fac Machines Disabled 9 | . . . . . 9 Max in Single Turn 2 | . . . . . 2 Garrison Access 1 | . . . . . 1 Machines Repaired . | . . . . . . Machines Dismantled . | . . . . . . Machines Sabotaged . | . . . . . . Overloaded Fab Kills . | . . . . . . Hacking | -11 -10 -10 -10 -9 -7 --------- Run | Yrd Mat Min Sub Rec Fac Machines Accessed 29 | . 6 . 1 11 11 Terminals 15 | . 4 . . 6 5 Fabricators 2 | . . . . . 2 Repair Stations 1 | . . . . . 1 Recycling Units 9 | . 2 . . 5 2 Scanalyzers . | . . . . . . Garrison Access 1 | . . . . . 1 Total Hacks 67 | . 18 . 1 25 23 Successful 47 | . 10 . 1 18 18 Failed 20 | . 8 . . 7 5 Catastrophic 6 | . 5 . . . 1 Database Lockouts . | . . . . . . Manual 13 | . . . 11 2 . Terminals 44 | . 14 . . 19 11 Fabricators 6 | . . . . . 6 Repair Stations 2 | . . . . . 2 Recycling Units 12 | . 4 . . 6 2 Scanalyzers . | . . . . . . Garrison Access 2 | . . . . . 2 Terminal Hacks 31 | . 8 . 1 12 10 Record 11 | . 3 . 1 3 4 Robot Schematic 2 | . . . . 2 . Prototype ID Bank 1 | . . . . . 1 Open DSF 2 | . . . . . 2 Level Access Points 1 | . . . . . 1 Emergency Access Points 1 | . . . . 1 . Fabricator Index 1 | . . . . 1 . Alert Level 4 | . 2 . . 1 1 Unreport Threat 2 | . 2 . . . . Dispatch Records 1 | . . . . 1 . Registered Components 1 | . . . . 1 . Registered Prototypes 1 | . . . . . 1 Zone Layout 3 | . 1 . . 2 . Fabricator Hacks 3 | . . . . . 3 Load Schematic 1 | . . . . . 1 Build 2 | . . . . . 2 Repair Station Hacks 2 | . . . . . 2 Scan Component 1 | . . . . . 1 Repair 1 | . . . . . 1 Recycling Unit Hacks 10 | . 2 . . 6 2 Report Inventory 9 | . 2 . . 5 2 Retrieve Components 1 | . . . . 1 . Scanalyzer . | . . . . . . Garrison Access Hacks 1 | . . . . . 1 Seal Access 1 | . . . . . 1 Unauthorized Hacks . | . . . . . . Terminals . | . . . . . . Fabricators . | . . . . . . Repair Stations . | . . . . . . Recycling Units . | . . . . . . Scanalyzers . | . . . . . . Garrison Access . | . . . . . . Data Cores Recovered . | . . . . . . Used . | . . . . . . Hacking Detections 18 | . 5 . . 8 5 Full Trace Events 9 | . 4 . . 2 3 Feedback Events . | . . . . . . Feedback Blocked . | . . . . . . Robot Schematics Acquired 2 | . . . . 2 . Robots Built 2 | . . . . . 2 Authchips . | . . . . . . Time 121 | . . . . . 121 Total Robot Build Rating 2 | . . . . . 2 Part Schematics Acquired . | . . . . . . Parts Built . | . . . . . . Authchips . | . . . . . . Time . | . . . . . . Total Part Build Rating . | . . . . . . Parts Repaired 1 | . . . . . 1 Time 31 | . . . . . 31 Parts Recycled . | . . . . . . Recycled Matter . | . . . . . . Retrieved Matter . | . . . . . . Retrieved Components 2 | . . . . 2 . Parts Scanalyzed . | . . . . . . Part Schematics Acquired . | . . . . . . Parts Damaged . | . . . . . . Bothacking | -11 -10 -10 -10 -9 -7 ------------ Run | Yrd Mat Min Sub Rec Fac Used RIF Installer . | . . . . . . Robots Hacked . | . . . . . . Non-combat . | . . . . . . Combat . | . . . . . . Robot Hacks Applied . | . . . . . . Relay Couplers Released . | . . . . . . Fabnet Peak Effective % . | . . . . . . Robots Rewired . | . . . . . . Allies Hacked . | . . . . . . Hacks Repelled . | . . . . . . Allies | -11 -10 -10 -10 -9 -7 -------- Run | Yrd Mat Min Sub Rec Fac Total Allies 2 | . . . . . 2 Largest Group 1 | . . . . . 1 Highest-Rated Group 10 | . . . . . 10 Highest-Rated Ally 10 | . . . . . 10 Total Orders . | . . . . . . Ally Attacks . | . . . . . . Total Damage . | . . . . . . Kills . | . . . . . . Allies Corrupted . | . . . . . . Allies Melted . | . . . . . . Intel | -11 -10 -10 -10 -9 -7 ------- Run | Yrd Mat Min Sub Rec Fac Robot Analysis Total . | . . . . . . Derelict Logs Recovered 3 | . . 1 2 . . Drone Launches . | . . . . . . Drone Recoveries . | . . . . . . Exploration | -11 -10 -10 -10 -9 -7 ------------- Run | Yrd Mat Min Sub Rec Fac Turns Passed 9527 | 4812 1469 801 364 578 1503 Spaces Moved 3197 | 608 755 374 191 445 824 Core 126 | 16 . . . . 110 Treads . | . . . . . . Legs 3049 | 592 755 374 191 445 692 Wheels . | . . . . . . Hover . | . . . . . . Flight 22 | . . . . . 22 Fastest Speed 34 | 50 120 190 120 120 34 Average Speed 145 | 118 174 190 156 120 130 Slowest Speed 260 | 120 190 190 190 120 260 Overloaded Moves . | . . . . . . Propulsion Burnouts . | . . . . . . Robots Hopped . | . . . . . . Cave-ins Triggered . | . . . . . . Exploration Rate (%) 57 | 50 79 88 10 92 26 Regions Visited 5 Branch Regions 3 Pre-discovered Areas . | . . . . . . Known Exits Taken . | . . . . . . Unknown Exits Taken 5 | 1 1 1 1 1 . Scrap Searched 1 | . . 1 . . . Spaces Dug 75 | . . 69 . 1 5 Terrain Destroyed 325 | . . 69 98 31 127 Melee 4 | . . . . 1 3 Projectile 18 | . . 9 . . 9 AOE 303 | . . 60 98 30 115 Terrain Rammed . | . . . . . . Walls Destroyed . | . . . . . . Machines Disabled . | . . . . . . Actions | -11 -10 -10 -10 -9 -7 --------- Run | Yrd Mat Min Sub Rec Fac Total 7762 | 4697 827 412 226 480 1120 Wait 4217 | 4076 . . . 17 124 Move 3192 | 607 754 373 190 444 824 Hop . | . . . . . . Pick Up 70 | 7 16 6 7 7 27 Fast Attach . | . . . . . . Attach 49 | 5 8 2 1 . 33 Detach 1 | . 1 . . . . Swap 16 | . 1 2 2 1 10 Drop 26 | . 4 2 4 5 11 Fire 173 | 2 43 27 22 5 74 Melee 18 | . . . . 1 17 Ram . | . . . . . . Kick . | . . . . . . Crush . | . . . . . . Escape Stasis . | . . . . . . Rewire . | . . . . . . Trap . | . . . . . . Miscellaneous . | . . . . . . Route ------- -11/Scrapyard -10/Materials (discovered 4 exits: [*Mat x2] / [*Min x2]) -10/Mines (discovered 3 exits: [*Mat x2] / *Sub) -10/Subcaves -9/Recycling -7/Factory (discovered 4 exits: Fac x4) History --------- Turn | Location | Event 2 | -11/Scrapyard | Met Revision 17 66 | -11/Scrapyard | Discovered new exit (range 8) 4813 | -11/Scrapyard | Entered Materials 4834 | -10/Materials | Build established: Mutant 4943 | -10/Materials | Discovered new exit (range 14) 4984 | -10/Materials | Discovered new exit (range 3) 5135 | -10/Materials | Discovered new exit (range 12) 5726 | -10/Materials | Discovered new exit (range 6) 6282 | -10/Materials | Entered Mines 6360 | -10/Mines | Discovered new exit (range 9) 6461 | -10/Mines | Learned Materials emergency access door positions 6507 | -10/Mines | Received a Rocket Launcher from a helpful Derelict 6658 | -10/Mines | Discovered new exit (range 7) 7062 | -10/Mines | Discovered new exit (range 12) 7083 | -10/Mines | Entered Subcaves 7122 | -10/Subcaves | Learned Materials interactive machine intel 7185 | -10/Subcaves | Ambushed by swarm of Subdwellers 7188 | -10/Subcaves | Ambushed by Subdweller buried in earth 7188 | -10/Subcaves | Ambushed by Subdweller buried in earth 7306 | -10/Subcaves | Discovered new exit (range 11) 7336 | -10/Subcaves | Destroyed 7 combat bots 7414 | -10/Subcaves | Visited Clippyterm 7447 | -10/Subcaves | Entered Recycling 7452 | -9/Recycling | Found Scrap Engine 7607 | -9/Recycling | Core integrity fell below 50% 8006 | -9/Recycling | Discovered new exit (range 10) 8025 | -9/Recycling | Entered Factory 8025 | -7/Factory | Evolved 6 slots: Power x1, Propulsion x2, Utility x2, Weapon x1 8179 | -7/Factory | Fabricated K-01 Serf (x1) 8215 | -7/Factory | Lost 4 parts (2p2u) 8308 | -7/Factory | Build established: Scavenger-Mutant 8405 | -7/Factory | Identified exit to Factory 8457 | -7/Factory | Repaired Myomer Leg 8796 | -7/Factory | Garrison activated, responded to threat 8893 | -7/Factory | Lost 8 parts (1p3n4w) 8980 | -7/Factory | Fabricated T-07 Excavator (x1) 9008 | -7/Factory | Core integrity fell below 50% 9095 | -7/Factory | Build established: Hacker-Mutant 9394 | -7/Factory | Core integrity fell below 20% 9439 | -7/Factory | Lost 11 parts (1p6n2u2w) 9528 | -7/Factory | Destroyed by G-50 Soldier with Heavy Laser Last Messages --------------- U-05 Engineer builds a Wall. U-05 Engineer lays Concrete. U-05 Engineer builds a Wall. Remote Datajack destroyed. U-05 Engineer lays Concrete. Acquired Hvy. Armor Plating. K-01 Serf cleans the Construction Platform. System corrupted: Substantial component data lost. K-01 Serf cleans the Subcomponent Replicator. Dropped Hvy. Armor Plating. K-01 Serf cleans the Subcomponent Replicator. Acquired Assault Cannon. G-50 Soldier Carbon-fiber Leg blasted off. G-50 Soldier knocked back. R-06 Scavenger collects Hvy. Armor Plating. System corrupted: Assault Cannon jammed. G-47 Trooper knocked back. R-06 Scavenger collects Carbon-fiber Leg. System corrupted: Component data lost. Map ----- +----------------------------------------------------+ | ?????????????????????????????????????????????????? | | ?????????????????????????????????????????????????? | | ?????????????????????????????????????????????????? | | ?????????????????????????????????????????????????? | | ?????????????????????????????????????????????????? | | ?????????????????????????????????????????????????? | | ?????????????????????????????????????????????????? | | ?????????????????????????????????????????????????? | | ?????????????????????????????????????????????????? | | ?????????????????????????????????????????????????? | | ?????????????????????????????????????????????????? | | ?????????????????????????????????????????????????? | | ?????????????????????????????????????????????????? | | ?????????????????????????????????????????????????? | | ?????????????????????????????????????????????????? | | ???????????????????????""????????????????????????? | | ???????????????????????"""???????????????????????? | | ?????????????????????? ????????????????????????? | | ?????????????????????? ????????????????????????? | | ?????????????????????? ?????????????????????????? | | ?????????????????????? ?????????????????????????? | | ???????#######+#######+################??????????? | | ?????? +??????????? | | ??????? #?????????????? | | ?????? ]] #?????????????? | | ?????? g @ #?????????????? | | ????? g ! #?????????????? | | ????? g #?????????????? | | ????? #?????????????? | | ?????????#####+####%r #?????????????? | | ??????????????????# % %""""" #?????????????? | | ??????????????????# gg """"" ????????????? | | ??????????????????# % """ ###???????????? | | ??????????????????# rt #?????????????? | | ??????????????????# """"" #?????????????? | | ??????????????????# """"" #?????????????? | | ??????????????????# """ #?????????????? | | ??????????????????# #?????????????? | | ??????????????????### #?????????????? | | ????????????????????# ^ ????????????? | | ????????????????????# ????????????? | | ??????????# ????????# ????????????? | | ??????????# ### """ """ """ ?????????????? | | ?????????????"""" / """ """ ""? "????????????? | | ?????????????"""" ### """ """^""" "????????????? | | ????????????????????# ????????????? | | ????????????????????## """ """ "????????????? | | ?????????????????????# """ """ """ ?????????? | | ?????????????????????# """ """ """ """??????? | | ???????????????????### !! ^ ??????? | +----------------------------------------------------+ Best States ------------- Heat Dissipation 35 Energy Generation 26 Energy Capacity 340 Matter Stores 400 Matter Capacity 400 Sight Range 16 Terrain Scan Density 10 ECM Strength 2 Additional Mass Support 9 Resistance: KI 20 Resistance: TH 20 Resistance: EX 20 Resistance: EM 20 Resistance: I 20 Resistance: S 20 Resistance: P 20 Core Shielding 20 Evasion (%) 63 Offensive Hacking 20 Authchip Count 3 Item Schematics ----------------- None Robot Schematics ------------------ K-01 Serf | -9/Recycling | Hacked R-06 Scavenger | -9/Recycling | Hacked Fabricated ------------ K-01 Serf | x1 | -7/Factory T-07 Excavator | x1 | -7/Factory | Preloaded Alien Tech Used ----------------- None Achievements -------------- Backstab It's Just You My Command Is Your Wish Tourist Challenges ------------ None Game ------ Seed BattleWardroneLink Manual? 0 Play Time 01:34:35 Cumulative 6.4 hours Start 2024.04.08 @ 12:21:01 End 2024.04.08 @ 15:11:51 Sessions 1 Manual Loads 0 Difficulty Adventurer Special Mode None Game No. 3 Rogue 0 Adventurer 3 Explorer 0 Win Type - Total 0 Types 0/0/0/0/0/0/0/0/0 Lore% 4 Gallery% 10 Achievement% 10 Wizard Run 0 Options --------- Layout 1 ASCII 0 Keyboard 0 Movement Mouse Keybinds 0 Fullscreen 0 Font 20/SmallcapsGlow Map View 50x35 Zoom Use 0% Tactical HUD 0 Map Filters NONE Filters NONE Steam 1 RUN: abfd9b22-162b-4b56-856d-89d8755d9b9d